Cogmind - Beta 14 @@@ ROGUE MODE // 2024.08.13 @ 14:22:58 Player: honey223 Result: Destroyed by HA-JJ2(R) with Subdweller Beam Cannon Performance ------------- Evolutions (0) 0 Regions Visited (2) 400 Robots Destroyed (38) 190 Value Destroyed (1139) 1139 Prototype IDs (0) 0 Alien Tech Used (0) 0 Bonus (0) 0 TOTAL SCORE: 1729 Bonus ------- None Cogmind --------- Core Integrity 0/250 Matter 248/500 Energy 250/250 System Corruption 0% Temperature Cool (9) Movement Core (1600) Ox31 Location -10/Subcaves Parts ------- > --- POWER (1) -------- Ion Engine > --- PROPULSION (2) --- (None) > --- UTILITY (2) ------ Huge Storage Unit High-capacity Matter Pod > --- WEAPON (2) ------- Improved Light Cannon Battle Cannon > --- INVENTORY (25) --- Ion Engine Ion Engine Armored Wheel Armored Wheel Armored Wheel Armored Wheel High-capacity Matter Pod (200) Signal Interpreter Signal Interpreter Particle Gun Assault Rifle Light Cannon Light Cannon Grenade Launcher Grenade Launcher Rocket Launcher Rocket Launcher Rocket Launcher Rocket Launcher Datajack Multitool Scrap Shield Fragment (46) Peak State ------------ > --- POWER ------------ Ion Engine > --- PROPULSION ------- Light Treads Makeshift Leg > --- UTILITY ---------- Cooling System Huge Storage Unit > --- WEAPON ----------- Improved Light Cannon Improved Light Cannon > --- INVENTORY -------- Ion Engine Ion Engine Ion Engine Armored Wheel Armored Wheel Armored Wheel Armored Wheel High-capacity Matter Pod High-capacity Matter Pod Signal Interpreter Signal Interpreter Particle Gun Assault Rifle Light Cannon Light Cannon Improved Light Cannon Battle Cannon Grenade Launcher Grenade Launcher Rocket Launcher Rocket Launcher Rocket Launcher Rocket Launcher Datajack Multitool [Rating: 16] Favorites ----------- Power Ion Engine Engine Ion Engine Propulsion Light Treads Treads Light Treads Leg Makeshift Leg Utility Huge Storage Unit Device Cooling System Storage Huge Storage Unit Weapon Improved Light Cannon Energy Gun Medium Laser Ballistic Cannon Improved Light Cannon Launcher Grenade Launcher Special Weapon Multitool Build | -11 -10 -10 ------- Run | Yrd Mat Sub Slots Evolved . | . . . Power . | . . . Propulsion . | . . . Utility . | . . . Weapon . | . . . Parts Attached 29 | 6 13 10 Power 4 | 1 2 1 Engine 4 | 1 2 1 Core . | . . . Reactor . | . . . Propulsion 5 | 2 . 3 Treads 4 | 2 . 2 Leg 1 | . . 1 Wheel . | . . . Hover . | . . . Flight . | . . . Utility 9 | 1 7 1 Device 3 | . 3 . Storage 6 | 1 4 1 Processor . | . . . Hackware . | . . . Protection . | . . . Artifact . | . . . Weapon 11 | 2 4 5 Energy Gun 2 | 2 . . Energy Cannon . | . . . Ballistic Gun . | . . . Ballistic Cannon 7 | . 4 3 Launcher 1 | . . 1 Special Weapon 1 | . . 1 Impact Weapon . | . . . Slashing Weapon . | . . . Piercing Weapon . | . . . Special Melee Weapon . | . . . Unidentified Prototypes . | . . . Parts Lost 9 | . 1 8 Power 1 | . . 1 Propulsion 4 | . . 4 Utility 2 | . 1 1 Weapon 2 | . . 2 Highest Loss Streak 4 | . 1 4 To Critical Strikes . | . . . Average Slot Usage (%) 99 | . 99 98 Engine 14 | . 14 14 Treads 24 | . 28 20 Leg 2 | . . 6 Device 13 | . 13 13 Storage 14 | . 14 14 Ballistic Cannon 27 | . 26 27 Peak Build Rating 16 | 6 13 16 Average Rating 12 | 4 11 14 On Entrance 6 | . 6 13 Naked Turns . | . . . Heaviest Build 96 | 14 95 96 Greatest Support 40 | 40 40 40 Greatest Overweight (x) 4 | 2 2 4 Average Overweight (x) 1 | . 1 2 Largest Inventory Capacity 25 | 8 25 25 Average Capacity 23 | 6 22 25 Most Carried 25 | 6 25 25 Average Carried 21 | 3 19 24 Final Capacity 25 | 8 25 25 Final Carried 25 | 6 25 22 Class Distribution -------------------- 100% | Mutant Dominant Class ---------------- Mutant | -10/Materials Mutant | -10/Subcaves Resources | -11 -10 -10 ----------- Run | Yrd Mat Sub Matter Collected 1487 | 260 727 500 Remotely . | . . . Salvage Created 1017 | 124 720 173 Parts 56 | 4 46 6 Haulers Intercepted 2 | . 2 . Recyclers Shooed 1 | . 1 . Parts Field Recycled . | . . . Retrieved Matter . | . . . Parts Self-Destructed 13 | . . 13 Prevented . | . . . Kills | -11 -10 -10 ------- Run | Yrd Mat Sub Combat Hostiles Destroyed 28 | . 19 9 Cannons 28 | . 19 9 Classes Destroyed 7 | 2 4 1 Tunneler 2 | 1 1 . Hauler 2 | . 2 . Recycler 3 | 1 2 . Operator 1 | . 1 . Watcher 2 | . 2 . Grunt 19 | . 19 . Subdweller 9 | . . 9 Best Kill Streak 4 | 2 4 1 Combat Bots Only 4 | . 4 1 Max Kills in Single Turn 2 | 1 2 1 Gunslinging . | . . . Exploded . | . . . Melee . | . . . Uniques/NPCs Destroyed . | . . . Combat | -11 -10 -10 -------- Run | Yrd Mat Sub Hostile Shots Fired 137 | . 67 70 Missed 36 | . 13 23 Damage Taken 1790 | . 659 1131 Core 256 | . 48 208 Absorbed by Shields . | . . . Regen/Repaired (Parts) 77 | . 77 . Core Remaining (%) 100 | 100 . . Volleys Fired 115 | 4 61 50 Largest 2 | 2 2 2 Hottest 100 | 100 78 78 Shots Fired 225 | 8 122 95 Gun 8 | 8 . . Cannon 212 | . 122 90 Launcher 4 | . . 4 Special 1 | . . 1 Kinetic 212 | . 122 90 Thermal 9 | 8 . 1 Explosive 4 | . . 4 Electromagnetic . | . . . Robot Hit Streak 10 | 4 10 10 Robot Miss Streak 3 | 1 3 3 Penetration Max . | . . . Secondary Targets . | . . . Shots Hit Robots 144 | 5 77 62 Core Hits 53 | 3 30 20 Critical Kills . | . . . Critical Parts Destroyed . | . . . Critical Strikes 5 | 1 3 1 Burn 1 | 1 . . Blast 4 | . 3 1 Melee Attacks . | . . . Impact . | . . . Slashing . | . . . Piercing . | . . . Sneak Attacks . | . . . Combat Hostiles . | . . . Follow-up Attacks . | . . . Damage Inflicted 3236 | 62 1684 1490 Guns 62 | 62 . . Cannons 2891 | . 1684 1207 Explosions 277 | . . 277 Melee . | . . . Ramming . | . . . Kinetic 2891 | . 1684 1207 Thermal 68 | 62 . 6 Explosive 277 | . . 277 Electromagnetic . | . . . Impact . | . . . Slashing . | . . . Piercing . | . . . Highest Corruption . | . . . Average Corruption . | . . . Corruption Purged . | . . . Corruption Blocked . | . . . Overload Shots . | . . . Overflow Damage 13 | . 13 . Projectiles 13 | . 13 . Explosions . | . . . Melee . | . . . Knockbacks 28 | . 15 13 Impact . | . . . Kinetic 27 | . 14 13 Secondary 1 | . 1 . Self-Inflicted Damage 17 | . . 17 Shots 3 | . . 3 Rammed 2 | . 2 . Targets Rammed 2 | . 2 . Kicked . | . . . Crushed . | . . . Highest Temperature 285 | 117 285 . Average Temperature 68 | 49 70 . Received Heat Transfer 549 | . 363 186 Effects 1 | . 1 . Energy Bleed 1 | . 1 . Siege Activations . | . . . Robots Corrupted . | . . . Combat Hostiles . | . . . Parts Fried . | . . . Impact Corruptions . | . . . Robots Melted . | . . . Combat Hostiles . | . . . Parts Melted 1 | 1 . . Heat Transferred 284 | 259 . 25 Parts Sabotaged . | . . . Parts Stolen . | . . . Parts Stripped . | . . . Power Chain Reactions . | . . . Alert | -11 -10 -10 ------- Run | Yrd Mat Sub Peak Influence 277 | 10 277 . Initial 6 | . 6 . Average 112 | 5 116 . Maximum Alert Level 1 | . 1 . Low Security (%) 90 | 100 89 . Level 1 9 | . 10 . Level 2 . | . . . Level 3 . | . . . Level 4 . | . . . Level 5 . | . . . High Security . | . . . Max Security . | . . . Squads Dispatched 6 | . 6 . Investigation 4 | . 4 . Extermination . | . . . Reinforcement 2 | . 2 . Assault . | . . . Garrison . | . . . Intercept . | . . . Searches Triggered . | . . . Construction Impeded . | . . . Haulers Reinforced . | . . . Active Scanning Responses . | . . . Cargo Convoy Interrupts . | . . . Stealth | -11 -10 -10 --------- Run | Yrd Mat Sub Distress Signals 1 | . 1 . Communications Jammed . | . . . Distress Signals . | . . . Times Spotted 49 | . 34 15 Peak Tracking Total 5 | . 5 3 Tactical Retreats 3 | . 2 1 Traps | -11 -10 -10 ------- Run | Yrd Mat Sub Traps Triggered 1 | . 1 . Indirectly . | . . . Trap Hack Attempts . | . . . Triggered . | . . . Disarmed . | . . . Reprogrammed . | . . . Reused . | . . . Traps Extracted . | . . . Installed . | . . . Triggered . | . . . Machines | -11 -10 -10 ---------- Run | Yrd Mat Sub Machines Disabled 1 | . 1 . Max in Single Turn 1 | . 1 . Machines Repaired . | . . . Machines Dismantled . | . . . Machines Sabotaged . | . . . Overloaded Fab Kills . | . . . Hacking | -11 -10 -10 --------- Run | Yrd Mat Sub Machines Accessed 10 | . 9 1 Terminals 6 | . 6 . Fabricators . | . . . Repair Stations 1 | . 1 . Recycling Units 2 | . 2 . Scanalyzers . | . . . Garrison Access . | . . . Total Hacks 25 | . 21 4 Successful 13 | . 9 4 Failed 11 | . 11 . Catastrophic 1 | . 1 . Database Lockouts 1 | . 1 . Manual 17 | . 17 . Terminals 17 | . 17 . Fabricators . | . . . Repair Stations 2 | . 2 . Recycling Units 2 | . 2 . Scanalyzers . | . . . Garrison Access . | . . . Terminal Hacks 7 | . 3 4 Record 4 | . . 4 Robot Analysis 2 | . 2 . Locate Traps 1 | . 1 . Fabricator Hacks . | . . . Repair Station Hacks 2 | . 2 . Scan Component 1 | . 1 . Repair 1 | . 1 . Recycling Unit Hacks . | . . . Scanalyzer . | . . . Garrison Access Hacks . | . . . Unauthorized Hacks 4 | . 4 . Terminals 2 | . 2 . Botnet 2 | . 2 . Fabricators . | . . . Repair Stations . | . . . Recycling Units 2 | . 2 . Tunnel 2 | . 2 . Scanalyzers . | . . . Garrison Access . | . . . Data Cores Recovered . | . . . Used . | . . . Hacking Detections 7 | . 7 . Full Trace Events 1 | . 1 . Feedback Events . | . . . Feedback Blocked . | . . . Robot Schematics Acquired . | . . . Robots Built . | . . . Authchips . | . . . Time . | . . . Total Robot Build Rating . | . . . Part Schematics Acquired . | . . . Parts Built . | . . . Authchips . | . . . Time . | . . . Total Part Build Rating . | . . . Parts Repaired 1 | . 1 . Time 32 | . 32 . Parts Recycled . | . . . Recycled Matter . | . . . Retrieved Matter . | . . . Retrieved Components . | . . . Parts Scanalyzed . | . . . Part Schematics Acquired . | . . . Parts Damaged . | . . . Bothacking | -11 -10 -10 ------------ Run | Yrd Mat Sub Used RIF Installer . | . . . Robots Hacked . | . . . Non-combat . | . . . Combat . | . . . Robot Hacks Applied . | . . . Relay Couplers Released . | . . . Fabnet Peak Effective % . | . . . Robots Rewired . | . . . Allies Hacked . | . . . Hacks Repelled . | . . . Allies | -11 -10 -10 -------- Run | Yrd Mat Sub Total Allies . | . . . Largest Group . | . . . Highest-Rated Group . | . . . Highest-Rated Ally . | . . . Total Orders . | . . . Ally Attacks . | . . . Total Damage . | . . . Kills . | . . . Allies Corrupted . | . . . Allies Melted . | . . . Intel | -11 -10 -10 ------- Run | Yrd Mat Sub Robot Analysis Total 2 | . 2 . Derelict Logs Recovered . | . . . Drone Launches . | . . . Drone Recoveries . | . . . Exploration | -11 -10 -10 ------------- Run | Yrd Mat Sub Turns Passed 4962 | 111 2821 2030 Spaces Moved 1436 | 58 886 492 Core 22 | 22 . . Treads 1216 | 36 886 294 Legs 198 | . . 198 Wheels . | . . . Hover . | . . . Flight . | . . . Fastest Speed 50 | 50 160 320 Average Speed 298 | 142 265 376 Slowest Speed 480 | 160 320 480 Overloaded Moves . | . . . Propulsion Burnouts . | . . . Robots Hopped . | . . . Cave-ins Triggered . | . . . Exploration Rate (%) 46 | 5 99 35 Regions Visited 2 Branch Regions 1 Pre-discovered Areas 2 | . 2 . Known Exits Taken . | . . . Unknown Exits Taken 2 | 1 1 . Scrap Searched 3 | . . 3 Spaces Dug . | . . . Terrain Destroyed 22 | . 6 16 Melee . | . . . Projectile 6 | . 6 . AOE 16 | . . 16 Terrain Rammed . | . . . Walls Destroyed . | . . . Machines Disabled . | . . . Actions | -11 -10 -10 --------- Run | Yrd Mat Sub Total 1887 | 79 1234 574 Wait 236 | . 220 16 Move 1434 | 57 885 492 Hop . | . . . Pick Up 52 | 12 36 4 Fast Attach 2 | . 1 1 Attach 17 | 6 6 5 Detach 1 | . 1 . Swap 10 | . 6 4 Drop 18 | . 16 2 Fire 115 | 4 61 50 Melee . | . . . Ram . | . . . Kick . | . . . Crush 2 | . 2 . Escape Stasis . | . . . Rewire . | . . . Trap . | . . . Miscellaneous . | . . . Route ------- -11/Scrapyard -10/Materials (discovered 6 exits: [*Mat x3] / [*Min x2] / *Sub) -10/Subcaves (discovered 1 exit: [*Mat]) History --------- Turn | Location | Event 36 | -11/Scrapyard | Discovered new exit (range 16) 112 | -11/Scrapyard | Entered Materials 300 | -10/Materials | Build established: Mutant 772 | -10/Materials | Discovered new exit (range 7) 984 | -10/Materials | Discovered new exit (range 12) 1013 | -10/Materials | Discovered new exit (range 14) 1582 | -10/Materials | Repaired Imp. Light Cannon 1649 | -10/Materials | Discovered new exit (range 5) 1787 | -10/Materials | Central database locked down 2130 | -10/Materials | Discovered new exit (range 9) 2656 | -10/Materials | Discovered new exit (range 10) 2933 | -10/Materials | Entered Subcaves 3397 | -10/Subcaves | Shifting Twisted Machinery released Piercing Trap 3462 | -10/Subcaves | Shifting Twisted Machinery released Riot Gun 3968 | -10/Subcaves | A swath of the cavern ceiling suddenly collapsed 4097 | -10/Subcaves | Discovered new exit (range 15) 4538 | -10/Subcaves | Core integrity fell below 50% 4685 | -10/Subcaves | Visited Clippyterm 4698 | -10/Subcaves | Learned Factory fabricator intel 4698 | -10/Subcaves | Learned Factory trap positions 4890 | -10/Subcaves | Lost 4 parts (1n1u2w) 4954 | -10/Subcaves | A Subdweller sparked back to life 4954 | -10/Subcaves | A Subdweller sparked back to life 4954 | -10/Subcaves | A Subdweller sparked back to life 4958 | -10/Subcaves | Core integrity fell below 20% 4963 | -10/Subcaves | Destroyed by HA-JJ2(R) with Subdweller Beam Cannon Last Messages --------------- 04851_ Imp. Light Cannon destroyed. 04855_ Mak. Leg destroyed. 04855_ Imp. Light Cannon destroyed. 04857_ 0H-764(R) destroyed. 04859_ Cooling System destroyed. 04867_ The unstable cave ceiling collapses. 04867_ 2Z-4X3(R) destroyed. 04870_ The unstable cave ceiling collapses. 04881_ Acquired 2 matter. 04884_ The unstable cave ceiling collapses. 04891_ Acquired 2 matter. 04954_ FJ-492(R) creaks and sparks as it begins to move. 04954_ EM-1S5(R) creaks and sparks as it begins to move. 04954_ HA-JJ2(R) creaks and sparks as it begins to move. 04955_ Lgt. Treads destroyed. 04958_ FJ-492(R) destroyed. 04961_ HA-JJ2(R) knocked back. Map ----- +----------------------------------------------------+ | ?????????????????????????????????????????????????? | | ?????????????????????????????????????????????????? | | ?????????????????????????????????????????????????? | | ?????????????????????????????????????????????????? | | ?????????????????????????????????????????????????? | | ?????????????????????????????????????????????????? | | ?????????????????????????????????????????????????? | | ?????????????????????????????????????????????????? | | ?????????????????????????????????????????????????? | | ?????????????????????????????????????????????????? | | ?????????????????????????????????????????????????? | | ?????????????????????????????????????????????????? | | ?????????????????????????????????????????????????? | | ?????????????????????????????????????????????????? | | ?????????????????????????????????????????????????? | | ?????????????????????????????????????????????????? | | ?????????????????????????????????????????????????? | | ????????????????????????????????????? ???????????? | | ????????????????????#?????????????? ???????????? | | ????????????????????? ???????????? ??????????? | | ??????????????????#### ?????????? #??????????? | | ?????????????????## # ????????? #???????????? | | ?????????????????# ??????? ##??????????? | | ??????????????????# ####### ##?????????? | | ???????????????????# < & #? ??????????? | | ???????????????????# [@< <#?## ??????????? | | ???????????????????# |%= < ### ???????????? | | ???????????????????## % * ! # ????????????? | | ????????????????????## R % &R### #????????????? | | ?????????????????????# ## # ?????????????? | | ?????????????????????# ### ## #?????????????? | | ??????????????????? ??# # #?????????????? | | ??????????????????### ??# ## #?????????????? | | ????????????????????### ### # #??######?????? | | ??????????????????????## ### #?????? | | ???????????????????????## "#?????? | | ????????????????????????#### ## " # "#?????? | | ???????????????????????????##?# " #??????????? | | ?????????????????????????????### & #?? #??????? | | ?????????????????????????????# & # #??????? | | ?????????????????????????????##% ## #??????? | | ??????????????????????????????## #"" #?????? | | ??????????????????????????????## # ##""" ##?????? | | ?????????????????????????????## ###???" #??????? | | ????????????????????????????## ##??????????????? | | ????????????????????????????# ##???????????????? | | ????????????????????????????# ##???????????????? | | ????????????????????????????## #??????????###??? | | ?????????????????????????????# ####???????#" ##?? | | ?????????????????????????????# ## #????###" #?# | +----------------------------------------------------+ Best States ------------- Heat Dissipation 47 Energy Generation 10 Energy Capacity 250 Matter Stores 300 Matter Capacity 500 Sight Range 16 Terrain Scan Density 10 Evasion (%) 40 Recoil Reduction 2 Item Schematics ----------------- None Robot Schematics ------------------ None Fabricated ------------ Nothing Alien Tech Used ----------------- None Achievements -------------- None Challenges ------------ None Game ------ Seed BombVampiricFalx Manual? 0 Play Time 00:22:59 Cumulative 236.5 hours Start 2024.08.13 @ 13:57:59 End 2024.08.13 @ 14:22:58 Sessions 1 Manual Loads 0 Difficulty Rogue Special Mode None Game No. 56 Rogue 31 Adventurer 25 Explorer 0 Win Type - Total 18 Types 10/2/1/1/1/0/0/2/1 Lore% 53 Gallery% 72 Achievement% 78 Wizard Run 0 Options --------- Layout 1 ASCII 0 Keyboard 0 Movement Mouse Keybinds 0 Fullscreen 2 Font 32/SmallcapsGlow Map View 50x40 Zoom Use 0% Tactical HUD 1 Map Filters NONE Filters NONE Steam 1 RUN: 19e42b55-b7b0-424a-a4ce-e14884baa672